Cogmind - Beta 17 @@@ ROGUE MODE // 2026.08.08 @ 21:10:50 Player: 4R-ZE3 Result: Self-destructed Performance ------------- Evolutions (5) 2500 Regions Visited (14) 2800 Robots Destroyed (137) 685 Value Destroyed (8938) 8938 Prototype IDs (10) 200 Alien Tech Used (0) 0 Bonus (5811) 5811 TOTAL SCORE: 20934 Bonus ------- High Alert Combat Kills 631 Follower Combat Kills 1180 Entered Garrisons 1000 Used RIF Installer 3000 Cogmind --------- Core Integrity 274/1000 Matter 293/300 Energy 99/100 System Corruption 15% Temperature Cool (0) Movement Core (50) Location -5/Factory Parts ------- > --- POWER (1) -------- (None) > --- PROPULSION (4) --- (None) > --- UTILITY (10) ----- Advanced Heat Sink Improved Melee Analysis Suite Graphene Brace Advanced System Shield Relay Coupler [Swarmer] (9) Relay Coupler [Hunter] (4) > --- WEAPON (2) ------- (None) > --- INVENTORY (5) ---- Relay Coupler [Grunt] (26) Relay Coupler [Heavy] (15) Relay Coupler [Proto] (9) Tesla Rifle Improved Remote Datajack Peak State ------------ > --- POWER ------------ Light Quantum Reactor > --- PROPULSION ------- Armored Wheel Armored Wheel > --- UTILITY ---------- Advanced Heat Sink Advanced Heat Sink Huge Storage Unit Improved Phase Shifter Improved Core Shielding Improved Light Armor Plating Relay Coupler [Swarmer] Relay Coupler [Swarmer] Relay Coupler [Specialist] Relay Coupler [Hunter] > --- WEAPON ----------- Plasma Cannon Improved Remote Datajack > --- INVENTORY -------- Deuterium Engine Improved Deuterium Engine Light Treads Light Treads Light Treads Light Treads Experimental Sensor Array Advanced ECM Suite Graphene Brace Relay Coupler [NC] Relay Coupler [NC] Relay Coupler [NC] Relay Coupler [NC] Relay Coupler [NC] Relay Coupler [NC] Relay Coupler [Grunt] Relay Coupler [Grunt] Relay Coupler [Sentry] Relay Coupler [Heavy] Relay Coupler [Behemoth] Relay Coupler [Proto] Relay Coupler [Proto] Relay Coupler [Proto] Relay Coupler [Proto] Blade Saw [Rating: 74] Favorites ----------- Power Cooled Ion Engine Engine Cooled Ion Engine Power Core Light Nuclear Core Reactor Light Quantum Reactor Propulsion Armored Wheel Treads Light Treads Leg Thunder Leg Wheel Armored Wheel Utility Huge Storage Unit Device Advanced Heat Sink Storage Huge Storage Unit Processor Experimental Targeting Computer Hackware Relay Coupler [Sentry] Protection Improved Light Armor Plating Weapon Improved Assault Rifle Energy Gun Small Laser Energy Cannon Plasma Cannon Ballistic Gun Improved Assault Rifle Ballistic Cannon Light Cannon Launcher Missile Launcher Special Weapon Remote Datajack Impact Weapon Heavy Hammer Slashing Weapon Power Sword Build | -11 -10 -10 -9 -9 -9 -8 -8 -8 -8 -7 -7 -6 -6 -5 ------- Run | Yrd Mat Min Mat Sto Gar Mat Gar Mat Gar Fac Gar Fac Gar Fac Slots Evolved 10 | . . . 2 . . 2 . . . 2 . 2 . 2 Power . | . . . . . . . . . . . . . . . Propulsion 2 | . . . . . . . . . . . . . . 2 Utility 8 | . . . 2 . . 2 . . . 2 . 2 . . Weapon . | . . . . . . . . . . . . . . . Parts Attached 153 | 6 6 9 14 14 9 15 11 2 10 7 5 . 30 15 Power 17 | 1 2 2 1 2 . 1 1 . 1 . 1 . 3 2 Engine 12 | 1 2 1 1 2 . 1 1 . 1 . . . 1 1 Core 3 | . . 1 . . . . . . . . 1 . . 1 Reactor 2 | . . . . . . . . . . . . . 2 . Propulsion 39 | 2 . 4 4 2 4 3 4 . . . . . 8 8 Treads 18 | 2 . 1 . 1 3 2 2 . . . . . 5 2 Leg 3 | . . . . . . . . . . . . . . 3 Wheel 18 | . . 3 4 1 1 1 2 . . . . . 3 3 Hover . | . . . . . . . . . . . . . . . Flight . | . . . . . . . . . . . . . . . Utility 62 | 1 4 2 5 2 4 6 4 1 5 4 4 . 17 3 Device 17 | . 2 2 2 1 1 1 1 . 1 1 1 . 3 1 Storage 6 | 1 2 . 2 . . 1 . . . . . . . . Processor 4 | . . . 1 1 . 1 . . . . . . . 1 Hackware 18 | . . . . . . 2 2 . 4 2 3 . 4 1 Protection 17 | . . . . . 3 1 1 1 . 1 . . 10 . Artifact . | . . . . . . . . . . . . . . . Weapon 35 | 2 . 1 4 8 1 5 2 1 4 3 . . 2 2 Energy Gun 9 | 2 . 1 3 3 . . . . . . . . . . Energy Cannon 3 | . . . . . . . . . . 1 . . 1 1 Ballistic Gun 13 | . . . . 4 . 5 2 1 1 . . . . . Ballistic Cannon 1 | . . . 1 . . . . . . . . . . . Launcher 1 | . . . . . . . . . . 1 . . . . Special Weapon 5 | . . . . . 1 . . . 2 1 . . 1 . Impact Weapon 1 | . . . . 1 . . . . . . . . . . Slashing Weapon 2 | . . . . . . . . . 1 . . . . 1 Piercing Weapon . | . . . . . . . . . . . . . . . Special Melee Weapon . | . . . . . . . . . . . . . . . Unidentified Prototypes 8 | . . 1 . 6 . 1 . . . . . . . . Parts Lost 74 | . 1 4 8 2 1 3 9 . . 3 2 . 23 18 Power 10 | . 1 1 2 . . . 1 . . . 1 . 2 2 Propulsion 29 | . . 2 4 1 1 1 4 . . 1 . . 7 8 Utility 21 | . . . . 1 . 1 2 . . 1 1 . 9 6 Weapon 14 | . . 1 2 . . 1 2 . . 1 . . 5 2 Highest Loss Streak 8 | . 1 2 5 1 1 1 4 . . 1 1 . 6 8 To Critical Strikes . | . . . . . . . . . . . . . . . Average Backups 22 | 1 9 15 19 23 24 24 23 24 24 23 24 24 24 23 Power 1 | . 2 3 2 2 3 2 1 1 . . 1 1 1 1 Propulsion 4 | . 5 6 8 8 7 5 5 2 2 1 4 7 4 2 Utility 10 | . 2 6 4 4 5 6 6 12 14 14 14 13 16 19 Weapon 4 | . . . 3 8 8 9 9 8 7 6 4 2 1 . Tool/Special . | . . . . . . . . . . . . . . . Unused Backups 60 | . . . . 4 8 1 1 5 3 4 6 . 8 20 Power 2 | . . . . 1 . . . . . . . . . 1 Propulsion 6 | . . . . 2 2 . 1 . . . . . 1 . Utility 28 | . . . . . . . . . 3 . 2 . 7 16 Weapon 22 | . . . . 1 6 1 . 5 . 4 4 . . 1 Tool/Special 2 | . . . . . . . . . . . . . . 2 Average Slot Usage (%) 95 | . 98 99 96 99 99 96 99 99 100 98 98 93 84 81 Engine 7 | . 14 7 10 11 11 9 8 9 9 7 3 . 1 2 Treads 7 | . 28 11 . 7 11 7 9 . . . . . 2 11 Wheel 11 | . . 16 21 14 9 10 8 18 18 14 15 13 10 5 Device 8 | . 12 14 25 18 3 8 8 9 1 . 1 6 7 7 Storage 8 | . 14 14 11 11 11 9 9 9 9 7 7 6 6 4 Processor 4 | . . . 4 14 15 11 9 9 . . . . . 4 Hackware 20 | . . . . . . 9 18 18 41 46 47 46 28 20 Protection 6 | . . . . . 14 12 8 8 2 5 2 . 12 10 Energy Gun 5 | . 28 28 20 8 . . . . . . . . . . Energy Cannon 1 | . . . . . . . . . . 1 . . 4 3 Ballistic Gun 5 | . . . . 11 18 16 14 10 4 . . . . . Special Weapon 2 | . . . . . . 1 . 7 8 4 7 6 1 . Slashing Weapon 1 | . . . . . . . . . 4 5 7 6 1 2 Peak Build Rating 74 | 6 10 18 17 25 27 36 36 38 43 51 54 60 74 71 Average Rating 36 | 4 8 13 16 21 25 32 34 37 40 47 50 60 57 57 On Entrance 30 | . 6 10 14 16 24 27 35 35 38 43 47 51 60 52 Avg Prop Armor Cover (%) 10 | . . . . 11 10 9 10 . . . . . 6 12 Naked Turns . | . . . . . . . . . . . . . . . Heaviest Build 115 | 11 51 52 96 96 100 102 99 103 103 105 102 92 115 108 Greatest Support 60 | 40 40 40 26 24 40 28 42 24 24 24 24 24 40 60 Greatest Overweight (x) 9 | . 1 2 9 9 9 8 8 4 4 4 4 3 9 5 Average Overweight (x) 4 | . . 1 3 6 8 6 7 3 3 3 3 3 4 1 Largest Inventory Capacity 25 | 8 20 20 25 25 25 25 25 25 25 25 25 25 25 25 Average Capacity 23 | 7 16 20 23 25 25 25 25 25 25 25 25 25 25 24 Most Carried 25 | 3 16 19 23 25 25 25 25 25 25 25 25 24 25 25 Average Carried 22 | 1 9 15 19 23 24 24 23 24 24 23 24 24 24 23 Final Capacity 25 | 8 20 20 25 25 25 25 25 25 25 25 25 25 25 5 Final Carried 25 | 3 16 19 20 25 23 25 24 25 25 24 25 24 24 5 Class Distribution -------------------- 48% | Mutant 28% | Botlord-Mutant 13% | Scavenger-Mutant 9% | Bothacker-Mutant Dominant Class ---------------- Mutant | -10/Materials Mutant | -10/Mines Mutant | -9/Materials Mutant | -9/Storage Mutant | -9/Garrison Mutant | -8/Materials Bothacker-Mutant | -8/Garrison Bothacker-Mutant | -8/Materials Botlord-Mutant | -8/Garrison Botlord-Mutant | -7/Factory Botlord-Mutant | -7/Garrison Botlord-Mutant | -6/Factory Botlord-Mutant | -6/Garrison Scavenger-Mutant | -5/Factory Resources | -11 -10 -10 -9 -9 -9 -8 -8 -8 -8 -7 -7 -6 -6 -5 ----------- Run | Yrd Mat Min Mat Sto Gar Mat Gar Mat Gar Fac Gar Fac Gar Fac Matter Collected 4294 | 200 115 95 163 314 596 514 955 . 406 164 115 . 491 166 Remotely . | . . . . . . . . . . . . . . . Salvage Created 6093 | . 440 204 740 579 595 613 1106 . 267 332 43 . 894 280 Parts 301 | . 24 12 38 26 42 33 44 . 18 24 4 . 27 9 Haulers Intercepted 6 | . 2 . . 3 . 1 . . . . . . . . Recyclers Shooed 1 | . . . . . . 1 . . . . . . . . Parts Field Recycled . | . . . . . . . . . . . . . . . Retrieved Matter . | . . . . . . . . . . . . . . . Parts Self-Destructed . | . . . . . . . . . . . . . . . Prevented . | . . . . . . . . . . . . . . . Parts Restored . | . . . . . . . . . . . . . . . Kills | -11 -10 -10 -9 -9 -9 -8 -8 -8 -8 -7 -7 -6 -6 -5 ------- Run | Yrd Mat Min Mat Sto Gar Mat Gar Mat Gar Fac Gar Fac Gar Fac Combat Hostiles Destroyed 122 | . 12 6 17 9 12 10 21 . 7 7 1 . 18 2 Melee 14 | . . . . . . . . . 1 4 1 . 7 1 Guns 90 | . 12 6 14 9 12 10 21 . 6 . . . . . Cannons 14 | . . . 1 . . . . . . 3 . . 9 1 AOE 4 | . . . 2 . . . . . . . . . 2 . Classes Destroyed 16 | . 4 3 4 . 2 . . . . 1 . . 2 . Worker 2 | . . 1 1 . . . . . . . . . . . Builder 1 | . . . 1 . . . . . . . . . . . Tunneler 2 | . . 2 . . . . . . . . . . . . Hauler 6 | . 2 . . 3 . 1 . . . . . . . . Recycler 3 | . . . 1 . . 1 . . . . . . . 1 Mechanic 2 | . . . . . . . . . . . . . 2 . Watcher 2 | . 1 . . . . . . . . 1 . . . . Swarmer 18 | . 8 . 3 . . . . . 2 1 2 . 2 . Cutter 3 | . . . . . . . . . . . . . 3 . Grunt 58 | . 4 2 9 4 4 7 17 . 2 . . . 9 . Brawler 1 | . . . 1 . . . . . . . . . . . Duelist 5 | . . . . . 1 1 1 . . . . . 2 . Sentry 21 | . . . 4 5 6 2 . . 1 1 . . 1 1 Hunter 1 | . . . . . . . . . . 1 . . . . Programmer 12 | . . . . . 1 . 3 . 2 4 . . 1 1 Assembled 4 | . . 4 . . . . . . . . . . . . Best Kill Streak 5 | . 4 2 5 3 3 3 5 . 3 1 1 . 4 1 Combat Bots Only 5 | . 4 2 3 3 3 3 5 . 3 1 1 . 4 1 Max Kills in Single Turn 3 | . 1 1 3 1 1 1 2 . 1 1 1 . 2 1 Gunslinging 1 | . . . . . . . 1 . . . . . . . Exploded 2 | . . . 2 . . . . . . . . . 2 . Melee 1 | . . . . . . . . . 1 1 1 . 1 1 Uniques/NPCs Destroyed . | . . . . . . . . . . . . . . . Combat | -11 -10 -10 -9 -9 -9 -8 -8 -8 -8 -7 -7 -6 -6 -5 -------- Run | Yrd Mat Min Mat Sto Gar Mat Gar Mat Gar Fac Gar Fac Gar Fac Hostile Shots Fired 995 | . 65 26 80 37 24 44 127 2 29 56 22 2 339 142 Missed 264 | . 22 4 17 9 6 5 26 . 8 16 10 2 108 31 Hits 731 | . 43 22 63 28 18 39 101 2 21 40 12 . 231 111 Melee 16 | . . 2 . . 3 3 . . . . . . 8 . Projectile 715 | . 43 20 63 28 15 36 101 2 21 40 12 . 223 111 AOE 5 | . . . . . . . . . . . . . 4 1 Critical Strikes 32 | . . . . 2 2 4 4 . 2 1 1 . 6 10 Actively Blocked 9 | . . . . . . 1 . . . . . . 1 7 Damage Taken 12004 | . 391 354 794 369 497 639 1641 60 345 732 237 . 3508 2437 Core 2535 | . 58 69 198 65 12 130 177 . 105 206 81 . 708 726 Absorbed by Shields . | . . . . . . . . . . . . . . . Redirected to Shielding 126 | . . . . . 2 19 35 . . . . . 41 29 Ignored by Resistances 20 | . . . . . . . . . . . . . . 20 Core Remaining (%) 46 | 100 . 49 . . 31 . . . 25 . 59 . 16 . Volleys Fired 488 | . 50 22 46 34 29 36 70 4 35 28 15 1 104 14 Largest 2 | . 2 2 2 2 2 2 2 1 2 1 1 1 1 1 Hottest 130 | . 90 105 130 106 46 46 50 5 50 75 5 5 80 80 Shots Fired 769 | . 100 43 91 66 58 70 134 4 41 28 15 1 103 15 Gun 575 | . 100 43 84 64 58 68 132 . 26 . . . . . Cannon 130 | . . . 7 2 . . . . . 19 . . 87 15 Launcher 2 | . . . . . . . . . . . . . 2 . Special 62 | . . . . . . 2 2 4 15 9 15 1 14 . Kinetic 319 | . . . 7 28 58 68 132 . 26 . . . . . Thermal 386 | . 100 43 84 38 . . . . . 19 . . 87 15 Explosive 2 | . . . . . . . . . . . . . 2 . Electromagnetic . | . . . . . . . . . . . . . . . Robot Hit Streak 60 | . 17 7 10 15 23 60 43 20 22 9 4 2 11 7 Robot Miss Streak 4 | . 3 3 3 1 1 1 1 . 2 4 2 . 2 2 Penetration Max . | . . . . . . . . . . . . . . . Secondary Targets 10 | . 1 . 1 . . 2 6 . . . . . . . Max Gunslinging Chain 1 | . 1 . 1 . . 1 1 . . . . . . . Shots Hit Robots 616 | . 73 25 60 51 42 67 119 4 30 24 15 1 70 35 Core Hits 243 | . 22 16 34 19 23 24 44 . 10 8 2 . 30 11 Critical Kills 2 | . . . . 1 . . 1 . . . . . . . Critical Parts Destroyed . | . . . . . . . . . . . . . . . Critical Strikes 28 | . 5 2 4 4 . . 1 . . . 1 . 3 8 Burn 13 | . 5 2 3 3 . . . . . . . . . . Destroy 2 | . . . . 1 . . 1 . . . . . . . Blast 1 | . . . 1 . . . . . . . . . . . Sever 12 | . . . . . . . . . . . 1 . 3 8 Melee Attacks 178 | . . . . 8 17 . 23 . 15 21 25 3 25 41 Impact 50 | . . . . 8 17 . 23 . 2 . . . . . Slashing 128 | . . . . . . . . . 13 21 25 3 25 41 Piercing . | . . . . . . . . . . . . . . . Sneak Attacks 6 | . . . . . . . . . . 1 3 . . 2 Combat Hostiles . | . . . . . . . . . . . . . . . Follow-up Attacks . | . . . . . . . . . . . . . . . Damage Inflicted 10937 | . 922 321 1148 748 638 971 2067 . 368 593 323 . 1954 884 Guns 6889 | . 922 321 892 748 638 971 2067 . 330 . . . . . Cannons 1663 | . . . 114 . . . . . . 224 . . 1068 257 Explosions 351 | . . . 142 . . . . . . . . . 209 . Melee 1871 | . . . . . . . . . 38 369 323 . 648 493 Ramming 163 | . . . . . . . . . . . . . 29 134 Kinetic 4413 | . . . 114 293 638 971 2067 . 330 . . . . . Thermal 4177 | . 922 321 930 455 . . . . . 224 . . 1068 257 Explosive 209 | . . . . . . . . . . . . . 209 . Electromagnetic 104 | . . . 104 . . . . . . . . . . . Impact . | . . . . . . . . . . . . . . . Slashing 1871 | . . . . . . . . . 38 369 323 . 648 493 Piercing . | . . . . . . . . . . . . . . . Highest Corruption 15 | . 2 2 . . . . 1 2 2 . . . 11 15 Average Corruption 4 | . 1 2 . . . . 1 1 2 . . . 7 5 Corruption Purged . | . . . . . . . . . . . . . . . Corruption Blocked . | . . . . . . . . . . . . . . . Effects 94 | . 5 8 . . . . 2 5 8 . . . 54 12 Message Errors 22 | . 3 2 . . . . . 2 1 . . . 11 3 Matter Fused 21 | . . 2 . . . . . 2 2 . . . 10 5 Heat Flow Errors 18 | . 1 . . . . . . . 1 . . . 15 1 Energy Discharges 12 | . . 2 . . . . . 1 1 . . . 7 1 Parts Fused 1 | . . 1 . . . . . . . . . . . . Data Loss (minor) 11 | . . 1 . . . . 1 . 2 . . . 6 1 Data Loss (major) 5 | . 1 . . . . . . . 1 . . . 3 . Misfires 1 | . . . . . . . . . . . . . . 1 Misdirections 1 | . . . . . . . . . . . . . 1 . Weapon Failures 2 | . . . . . . . 1 . . . . . 1 . Overload Shots . | . . . . . . . . . . . . . . . Overflow Damage 62 | . . . 2 . . . . . . . . . 60 . Projectiles 35 | . . . . . . . . . . . . . 35 . Explosions 21 | . . . 2 . . . . . . . . . 19 . Melee 6 | . . . . . . . . . . . . . 6 . Knockbacks 1 | . . . . . . . . . . . . . . 1 Impact 1 | . . . . . . . . . . . . . . 1 Kinetic . | . . . . . . . . . . . . . . . Secondary . | . . . . . . . . . . . . . . . Self-Inflicted Damage 98 | . . . 34 . . . . . . . . . 64 . Shots 2 | . . . 1 . . . . . . . . . 1 . Rammed 5 | . . . . . . . . . . . . . 4 1 Targets Rammed 33 | . . . . . . . . . . . . . 4 29 Kicked 28 | . . . . . . . . . . . . . . 28 Crushed . | . . . . . . . . . . . . . . . Highest Temperature 245 | . 245 45 216 27 4 5 6 . 226 198 . . 234 128 Average Temperature 52 | . 27 14 74 14 2 5 4 . 112 70 . . 80 78 Received Heat Transfer 3027 | . 90 57 363 180 72 306 927 18 117 21 39 . 789 48 Siege Activations . | . . . . . . . . . . . . . . . Martial Activations . | . . . . . . . . . . . . . . . Shielding Activations . | . . . . . . . . . . . . . . . Robots Disrupted . | . . . . . . . . . . . . . . . Combat Hostiles . | . . . . . . . . . . . . . . . Robots Corrupted . | . . . . . . . . . . . . . . . Combat Hostiles . | . . . . . . . . . . . . . . . Parts Fried . | . . . . . . . . . . . . . . . Impact Corruptions . | . . . . . . . . . . . . . . . Robots Melted . | . . . . . . . . . . . . . . . Combat Hostiles . | . . . . . . . . . . . . . . . Parts Melted 27 | . 14 . 2 6 . . . . . . . . 3 2 Heat Transferred 10288 | . 2688 929 2419 1406 . . . . . 296 . . 2050 500 Parts Sabotaged . | . . . . . . . . . . . . . . . Parts Stolen . | . . . . . . . . . . . . . . . Parts Stripped . | . . . . . . . . . . . . . . . Power Chain Reactions 1 | . . . 1 . . . . . . . . . . . Alert | -11 -10 -10 -9 -9 -9 -8 -8 -8 -8 -7 -7 -6 -6 -5 ------- Run | Yrd Mat Min Mat Sto Gar Mat Gar Mat Gar Fac Gar Fac Gar Fac Maximum Alert Level 4 | . . . . . 3 1 3 2 3 2 3 2 4 3 Low Security (%) 40 | 100 100 100 100 100 33 . 7 . . 68 35 . . . Level 1 21 | . . . . . 32 100 20 5 35 30 23 . 7 35 Level 2 22 | . . . . . 24 . 41 94 30 1 26 100 30 54 Level 3 14 | . . . . . 9 . 31 . 33 . 13 . 46 10 Level 4 2 | . . . . . . . . . . . . . 15 . Level 5 . | . . . . . . . . . . . . . . . High Security . | . . . . . . . . . . . . . . . Max Security . | . . . . . . . . . . . . . . . Peak Influence 1504 | . 80 30 161 80 724 347 1033 503 773 405 905 474 1504 755 Initial 755 | . . . . 64 38 347 153 503 260 405 25 474 287 755 Average 357 | . 17 2 72 38 354 279 549 450 517 157 383 451 825 499 Influence Increases 7036 | . 343 65 537 372 746 275 1010 68 613 283 960 27 1642 95 Destroy 0b10 Robot/C 3200 | . 240 40 340 180 360 200 440 20 320 140 100 20 760 40 Destroy 0b10 Robot/NC 105 | . 15 15 15 15 . 10 . 5 . 10 5 . 10 5 Destroy Leader 466 | . 46 10 100 66 10 52 30 10 20 52 . . 50 20 Allied During Kill 207 | . . . . . 39 1 7 3 54 1 10 4 88 . Successful Hack 142 | . 27 . 5 18 21 12 . . 14 10 14 . 21 . Disable Machine 180 | . . . 60 45 . . 60 . . . . . 15 . Anti-Garrison Action 1950 | . . . . . 250 . 400 . 150 . 700 . 450 . Destroy Structure 396 | . . . 2 3 66 . 58 . 55 10 71 3 128 . Lose Combat Pursuer 390 | . 15 . 15 45 . . 15 30 . 60 60 . 120 30 Influence Decreases 6824 | . 343 65 384 466 91 753 213 700 241 1019 92 521 614 1322 Entered New Map 2850 | . . . . 89 21 367 83 530 141 368 12 431 124 684 Time Decay 2634 | . 333 55 314 357 . 326 . 170 . 571 . 50 . 458 Lost Part 700 | . 10 10 70 20 10 30 90 . . 30 20 . 230 180 Lost Ally 640 | . . . . . 60 30 40 . 100 50 60 40 260 . Squads Dispatched 17 | . 2 . 3 2 . 2 . . . 6 . . . 2 Investigation 3 | . 1 . 2 . . . . . . . . . . . Extermination 5 | . . . . . . . . . . 3 . . . 2 Reinforcement 8 | . 1 . 1 1 . 2 . . . 3 . . . . Assault . | . . . . . . . . . . . . . . . Garrison 1 | . . . . 1 . . . . . . . . . . Intercept . | . . . . . . . . . . . . . . . Searches Triggered . | . . . . . . . . . . . . . . . Construction Impeded . | . . . . . . . . . . . . . . . Haulers Reinforced . | . . . . . . . . . . . . . . . Active Scanning Responses . | . . . . . . . . . . . . . . . Cargo Convoy Interrupts . | . . . . . . . . . . . . . . . Stealth | -11 -10 -10 -9 -9 -9 -8 -8 -8 -8 -7 -7 -6 -6 -5 --------- Run | Yrd Mat Min Mat Sto Gar Mat Gar Mat Gar Fac Gar Fac Gar Fac Distress Signals 11 | . 3 . 1 1 . . . 1 . 2 1 . . 2 Communications Jammed . | . . . . . . . . . . . . . . . Distress Signals . | . . . . . . . . . . . . . . . Times Spotted 268 | . 22 7 22 15 17 13 24 6 18 27 16 4 63 14 Peak Tracking Total 16 | . 4 3 4 4 4 3 5 3 5 4 3 4 16 4 Tactical Retreats 20 | . 1 2 1 2 . . 1 2 . 2 2 . 5 2 Traps | -11 -10 -10 -9 -9 -9 -8 -8 -8 -8 -7 -7 -6 -6 -5 ------- Run | Yrd Mat Min Mat Sto Gar Mat Gar Mat Gar Fac Gar Fac Gar Fac Traps Triggered 46 | . 2 . 2 . 8 . 9 1 8 . 8 . 8 . Indirectly . | . . . . . . . . . . . . . . . Trap Hack Attempts . | . . . . . . . . . . . . . . . Triggered . | . . . . . . . . . . . . . . . Disarmed . | . . . . . . . . . . . . . . . Reprogrammed . | . . . . . . . . . . . . . . . Reused . | . . . . . . . . . . . . . . . Traps Extracted . | . . . . . . . . . . . . . . . Installed . | . . . . . . . . . . . . . . . Triggered . | . . . . . . . . . . . . . . . Machines | -11 -10 -10 -9 -9 -9 -8 -8 -8 -8 -7 -7 -6 -6 -5 ---------- Run | Yrd Mat Min Mat Sto Gar Mat Gar Mat Gar Fac Gar Fac Gar Fac Machines Disabled 32 | . . . 4 3 3 . 8 . 3 . 4 . 7 . Max in Single Turn 2 | . . . 2 1 1 . 1 . 1 . 1 . 1 . Garrison Relay 19 | . . . . . 3 . 4 . 3 . 4 . 5 . Machines Repaired . | . . . . . . . . . . . . . . . Machines Dismantled . | . . . . . . . . . . . . . . . Machines Sabotaged . | . . . . . . . . . . . . . . . Overloaded Fab Kills . | . . . . . . . . . . . . . . . Hacking | -11 -10 -10 -9 -9 -9 -8 -8 -8 -8 -7 -7 -6 -6 -5 --------- Run | Yrd Mat Min Mat Sto Gar Mat Gar Mat Gar Fac Gar Fac Gar Fac Machines Accessed 39 | . 5 . 4 7 2 2 3 2 2 7 2 1 2 . Terminals 27 | . 4 . 3 5 2 . 3 . 2 4 2 . 2 . Fabricators . | . . . . . . . . . . . . . . . Repair Stations . | . . . . . . . . . . . . . . . Recycling Units 4 | . 1 . . 1 . . . . . 2 . . . . Scanalyzers 3 | . . . 1 . . 1 . 1 . . . . . . Garrison Access 5 | . . . . 1 . 1 . 1 . 1 . 1 . . Total Hacks 76 | . 13 . 9 17 2 3 5 2 5 14 3 1 2 . Successful 37 | . 8 . 4 8 2 2 . 2 1 5 2 1 2 . Failed 38 | . 5 . 4 9 . 1 5 . 4 9 1 . . . Catastrophic 12 | . 2 . . 2 . . 3 . 2 3 . . . . Database Lockouts 1 | . . . 1 . . . . . . . . . . . Manual 35 | . 12 . 4 8 . . . . . 11 . . . . Terminals 60 | . 12 . 6 14 2 . 5 . 5 11 3 . 2 . Fabricators . | . . . . . . . . . . . . . . . Repair Stations . | . . . . . . . . . . . . . . . Recycling Units 5 | . 1 . . 2 . . . . . 2 . . . . Scanalyzers 6 | . . . 3 . . 2 . 1 . . . . . . Garrison Access 5 | . . . . 1 . 1 . 1 . 1 . 1 . . Terminal Hacks 14 | . 4 . . 3 2 . . . 1 . 2 . 2 . Robot Analysis 3 | . 3 . . . . . . . . . . . . . Open Door 5 | . . . . 3 1 . . . . . . . 1 . Branch Access Points 1 | . 1 . . . . . . . . . . . . . Emergency Access Points 4 | . . . . . 1 . . . 1 . 1 . 1 . Patrol Navigation 1 | . . . . . . . . . . . 1 . . . Fabricator Hacks . | . . . . . . . . . . . . . . . Repair Station Hacks . | . . . . . . . . . . . . . . . Recycling Unit Hacks 3 | . 1 . . 1 . . . . . 1 . . . . Retrieve Components 3 | . 1 . . 1 . . . . . 1 . . . . Scanalyzer 4 | . . . 2 . . 1 . 1 . . . . . . Retrieve Study 4 | . . . 2 . . 1 . 1 . . . . . . Garrison Access Hacks 5 | . . . . 1 . 1 . 1 . 1 . 1 . . Unlock Access 5 | . . . . 1 . 1 . 1 . 1 . 1 . . Unauthorized Hacks 11 | . 3 . 2 3 . . . . . 3 . . . . Terminals 11 | . 3 . 2 3 . . . . . 3 . . . . Botnet 10 | . 3 . 2 2 . . . . . 3 . . . . Skim 1 | . . . . 1 . . . . . . . . . . Fabricators . | . . . . . . . . . . . . . . . Repair Stations . | . . . . . . . . . . . . . . . Recycling Units . | . . . . . . . . . . . . . . . Scanalyzers . | . . . . . . . . . . . . . . . Garrison Access . | . . . . . . . . . . . . . . . Data Cores Recovered . | . . . . . . . . . . . . . . . Used . | . . . . . . . . . . . . . . . Hacking Detections 24 | . 4 . 3 3 2 1 3 . 2 5 1 . . . Full Trace Events 1 | . 1 . . . . . . . . . . . . . Feedback Events 1 | . 1 . . . . . . . . . . . . . Corruption 1 | . 1 . . . . . . . . . . . . . Feedback Blocked . | . . . . . . . . . . . . . . . Robot Schematics Acquired . | . . . . . . . . . . . . . . . Robots Built . | . . . . . . . . . . . . . . . Authchips . | . . . . . . . . . . . . . . . Time . | . . . . . . . . . . . . . . . Total Robot Build Rating . | . . . . . . . . . . . . . . . Part Schematics Acquired . | . . . . . . . . . . . . . . . Parts Built . | . . . . . . . . . . . . . . . Authchips . | . . . . . . . . . . . . . . . Time . | . . . . . . . . . . . . . . . Total Part Build Rating . | . . . . . . . . . . . . . . . Part Studies Acquired 4 | . . . 2 . . 1 . 1 . . . . . . Parts Repaired . | . . . . . . . . . . . . . . . Time . | . . . . . . . . . . . . . . . Parts Recycled . | . . . . . . . . . . . . . . . Recycled Matter . | . . . . . . . . . . . . . . . Retrieved Matter . | . . . . . . . . . . . . . . . Retrieved Components 19 | . 9 . . 9 . . . . . 1 . . . . Parts Scanalyzed . | . . . . . . . . . . . . . . . Part Schematics Acquired . | . . . . . . . . . . . . . . . Parts Damaged . | . . . . . . . . . . . . . . . Bothacking | -11 -10 -10 -9 -9 -9 -8 -8 -8 -8 -7 -7 -6 -6 -5 ------------ Run | Yrd Mat Min Mat Sto Gar Mat Gar Mat Gar Fac Gar Fac Gar Fac Used RIF Installer 6 | . . . . . 2 . 1 . 1 . 1 . 1 . Hotswap 1 | . . . . . 1 . . . . . . . . . Code Merge 1 | . . . . . . . . . . . . . 1 . Command Fork 1 | . . . . . . . . . . . 1 . . . Robot Detection 1 | . . . . . . . 1 . . . . . . . Autooverride 1 | . . . . . . . . . 1 . . . . . Robots Hacked 45 | . . . . . . 2 2 3 8 9 11 . 10 . Non-combat 5 | . . . . . . 1 . 1 . 3 . . . . Combat 40 | . . . . . . 1 2 2 8 6 11 . 10 . Autooverrided 4 | . . . . . . . . . . 1 1 . 2 . Robot Hacks Applied 43 | . . . . . . 2 2 4 9 8 10 . 8 . parse_system 3 | . . . . . . . . 1 2 . . . . . drop_inventory 2 | . . . . . . . . 1 . 1 . . . . mark_security 1 | . . . . . . . . . . 1 . . . . amplify_resonance 3 | . . . . . . . . . 1 . 2 . . . disable_weapons 1 | . . . . . . . . . . . 1 . . . overwrite_iff 6 | . . . . . . . . . 1 . 2 . 3 . streamctrl_high 1 | . . . . . . . . . . . 1 . . . formatsys_low 1 | . . . . . . 1 . . . . . . . . formatsys_high 25 | . . . . . . 1 2 2 5 6 4 . 5 . Relay Couplers Released 72 | . . . . . 11 . 15 . 13 . 14 . 19 . Machine Destruction 72 | . . . . . 11 . 15 . 13 . 14 . 19 . Attached 17 | . . . . . . 2 2 . 4 2 3 . 4 . Fabnet Peak Effective % . | . . . . . . . . . . . . . . . Robots Rewired 6 | . . . . . 3 . . . . . . . 3 . Allies Hacked 1 | . . . . . . . . . 1 . . . . . Hacks Repelled . | . . . . . . . . . . . . . . . Allies | -11 -10 -10 -9 -9 -9 -8 -8 -8 -8 -7 -7 -6 -6 -5 -------- Run | Yrd Mat Min Mat Sto Gar Mat Gar Mat Gar Fac Gar Fac Gar Fac Total Allies 46 | . . . . . 3 2 2 2 6 7 9 . 15 . Largest Group 4 | . . . . . 3 2 2 2 4 3 3 3 4 . Highest-Rated Group 138 | . . . . . 90 25 31 30 76 122 64 64 138 . Highest-Rated Ally 90 | . . . . . 39 15 16 15 24 90 32 32 51 . Total Orders 2 | . . . . . . . . . . . 2 . . . STAY 1 | . . . . . . . . . . . 1 . . . FOLLOW 1 | . . . . . . . . . . . 1 . . . Ally Attacks 182 | . . . . . 25 2 15 4 27 9 12 10 78 . Total Damage 4411 | . . . . . 380 49 299 88 662 224 400 172 2137 . Kills 46 | . . . . . 6 . 1 2 9 1 5 1 21 . Allies Corrupted . | . . . . . . . . . . . . . . . Allies Melted . | . . . . . . . . . . . . . . . Intel | -11 -10 -10 -9 -9 -9 -8 -8 -8 -8 -7 -7 -6 -6 -5 ------- Run | Yrd Mat Min Mat Sto Gar Mat Gar Mat Gar Fac Gar Fac Gar Fac Active Infowar (turns) 1942 | . . 1 745 672 174 203 . . . 26 . 113 8 . Sensors 122 | . . 1 . . . . . . . . . 113 8 . Structural 1591 | . . . 745 672 174 . . . . . . . . . T.N.C. 203 | . . . . . . 203 . . . . . . . . ECM 26 | . . . . . . . . . . 26 . . . . Robot Analysis Total 3 | . 3 . . . . . . . . . . . . . Derelict Logs Recovered 1 | . . 1 . . . . . . . . . . . . Drone Launches . | . . . . . . . . . . . . . . . Drone Recoveries . | . . . . . . . . . . . . . . . Exploration | -11 -10 -10 -9 -9 -9 -8 -8 -8 -8 -7 -7 -6 -6 -5 ------------- Run | Yrd Mat Min Mat Sto Gar Mat Gar Mat Gar Fac Gar Fac Gar Fac Turns Passed 15314 | 72 1401 778 746 953 1319 727 1854 348 845 1728 1222 115 2063 1143 Spaces Moved 7327 | 39 574 469 394 381 455 270 702 210 475 1112 738 76 913 519 Core 36 | 1 . . . . . . . . . . . . . 35 Treads 1077 | 38 574 121 . . 3 . 10 . . . . . 82 249 Legs 4 | . . . . . . . . . . . . . . 4 Wheels 6210 | . . 348 394 381 452 270 692 210 475 1112 738 76 831 231 Hover . | . . . . . . . . . . . . . . . Flight . | . . . . . . . . . . . . . . . Fastest Speed 50 | 50 160 110 110 135 205 135 150 135 125 125 125 125 125 50 Average Speed 162 | 157 206 143 126 174 207 192 206 144 128 137 130 125 170 167 Slowest Speed 560 | 160 240 240 205 205 480 210 320 150 140 140 140 125 560 320 Overloaded Moves . | . . . . . . . . . . . . . . . Propulsion Burnouts . | . . . . . . . . . . . . . . . Robots Hopped . | . . . . . . . . . . . . . . . Potential Cave-ins . | . . . . . . . . . . . . . . . Cave-ins Triggered . | . . . . . . . . . . . . . . . Exploration Rate (%) 46 | 4 82 73 39 39 63 25 74 19 76 35 73 2 92 8 Regions Visited 14 Branch Regions 2 Pre-discovered Areas . | . . . . . . . . . . . . . . . Known Exits Taken 7 | . 1 . 1 1 . 1 . 1 . 1 . 1 . . Unknown Exits Taken 2 | 1 . 1 . . . . . . . . . . . . Scrap Searched 1 | . . 1 . . . . . . . . . . . . Spaces Dug 21 | . . . . 2 1 . 3 . . 10 1 3 1 . Terrain Destroyed 36 | . . . . 2 1 . 3 . . 10 1 3 16 . Melee 21 | . . . . 2 1 . 3 . . 10 1 3 1 . Projectile 1 | . . . . . . . . . . . . . 1 . AOE 14 | . . . . . . . . . . . . . 14 . Terrain Rammed . | . . . . . . . . . . . . . . . Walls Destroyed . | . . . . . . . . . . . . . . . Machines Disabled . | . . . . . . . . . . . . . . . Actions | -11 -10 -10 -9 -9 -9 -8 -8 -8 -8 -7 -7 -6 -6 -5 --------- Run | Yrd Mat Min Mat Sto Gar Mat Gar Mat Gar Fac Gar Fac Gar Fac Total 9660 | 47 689 528 551 586 737 407 947 255 662 1258 959 91 1288 655 Wait 778 | . 48 22 76 106 73 51 26 17 53 65 119 11 89 22 Move 7317 | 38 573 468 393 381 454 270 701 210 474 1112 737 75 912 519 Hop . | . . . . . . . . . . . . . . . Pick Up 157 | 3 11 4 12 12 14 11 12 11 10 12 16 . 21 8 Fast Attach 55 | 6 2 3 2 9 2 4 1 1 1 1 . . 15 8 Attach 70 | . 1 3 10 2 2 7 10 . 3 5 4 1 13 9 Detach 10 | . . 1 1 2 . 2 . . . 1 . . 3 . Swap 146 | . 3 4 6 17 38 16 34 3 10 6 1 . 8 . Drop 115 | . 1 1 5 15 18 10 6 9 13 7 9 . 16 5 Fire 488 | . 50 22 46 34 29 36 70 4 35 28 15 1 104 14 Melee 178 | . . . . 8 17 . 23 . 15 21 25 3 25 41 Ram 5 | . . . . . . . . . . . . . 4 1 Kick 28 | . . . . . . . . . . . . . . 28 Crush . | . . . . . . . . . . . . . . . Escape Stasis 232 | . . . . . 40 . 64 . 48 . 32 . 48 . Rewire 81 | . . . . . 50 . . . . . 1 . 30 . Trap . | . . . . . . . . . . . . . . . Miscellaneous . | . . . . . . . . . . . . . . . Route ------- -11/Scrapyard -10/Materials (discovered 3 exits: *Mat x2 / *Min) -10/Mines (discovered 2 exits: *Mat / [*Exi]) -9/Materials (discovered 2 exits: *Mat / *Sto) -9/Storage -9/Garrison (discovered 2 exits: *Mat x2) -8/Materials (discovered 2 exits: *Fac / Gar) -8/Garrison (discovered 3 exits: *Mat x3) -8/Materials -8/Garrison (discovered 2 exits: *Fac x2) -7/Factory (discovered 2 exits: *Fac / Gar) -7/Garrison (discovered 3 exits: *Fac x3) -6/Factory -6/Garrison (discovered 3 exits: [*Fac x3]) -5/Factory History --------- Turn | Location | Event 17 | -11/Scrapyard | Discovered new exit (range 16) 73 | -11/Scrapyard | Entered Materials 313 | -10/Materials | Build established: Mutant 351 | -10/Materials | Discovered new exit (range 16) 773 | -10/Materials | Derelicts attacked the area 973 | -10/Materials | Discovered new exit (range 16) 1239 | -10/Materials | Identified exit to Mines 1474 | -10/Materials | Entered Mines 1480 | -10/Mines | Met a Derelict bent on vengeance 1778 | -10/Mines | Assembled infested the area 1783 | -10/Mines | Assisted by a Guerilla fighting off Assembled 1952 | -10/Mines | A weapon hastily lodged in a ceiling crevice suddenly fell to the ground 1967 | -10/Mines | Deemed a non-threat by the Exiles lab entrance 2002 | -10/Mines | Learned Materials emergency access door positions 2038 | -10/Mines | Found a damaged Exp. Sensor Array with a note attached 2041 | -10/Mines | Found Prototype Device 2041 | -10/Mines | Identified Exp. Sensor Array 2128 | -10/Mines | Discovered new exit (range 5) 2182 | -10/Mines | Core integrity fell below 50% 2245 | -10/Mines | Discovered new exit (range 7) 2252 | -10/Mines | Entered Materials 2252 | -9/Materials | Evolved 2 slots: Utility x2 2499 | -9/Materials | Discovered new exit (range 16) 2536 | -9/Materials | Central database locked down 2681 | -9/Materials | Identified exit to Materials 2880 | -9/Materials | Lost 5 parts (1p2n2w) 2966 | -9/Materials | Discovered new exit (range 4) 2982 | -9/Materials | Identified exit to Storage 2998 | -9/Materials | Entered Storage 3086 | -9/Storage | Core integrity fell below 50% 3669 | -9/Storage | Found Prototype Processor 3669 | -9/Storage | Identified Exp. Targeting Computer 3860 | -9/Storage | Garrison activated, responded to threat 3951 | -9/Storage | Identified exit to Garrison 3951 | -9/Storage | Entered Garrison 3983 | -9/Garrison | Triggered checkpoint 4057 | -9/Garrison | Garrison Relay disabled 4189 | -9/Garrison | Triggered checkpoint 4359 | -9/Garrison | Discovered exit to Materials (range 7) 4413 | -9/Garrison | Triggered checkpoint 4505 | -9/Garrison | Garrison Relay disabled 4825 | -9/Garrison | Triggered checkpoint 4869 | -9/Garrison | Build established: Scavenger-Mutant 4923 | -9/Garrison | Discovered exit to Materials (range 10) 4983 | -9/Garrison | Triggered checkpoint 5034 | -9/Garrison | Garrison Relay disabled 5094 | -9/Garrison | Installed Relay Interface Framework 5140 | -9/Garrison | Lost 3 allies 5179 | -9/Garrison | Expanded RIF knowledge: Hotswap 5206 | -9/Garrison | Build established: Mutant 5270 | -9/Garrison | Entered Materials 5270 | -8/Materials | Evolved 2 slots: Utility x2 5899 | -8/Materials | Discovered new exit (range 3) 5997 | -8/Materials | Identified exit to Garrison 5997 | -8/Materials | Entered Garrison 6047 | -8/Garrison | Triggered checkpoint 6131 | -8/Garrison | Garrison Relay disabled 6235 | -8/Garrison | Triggered checkpoint 6449 | -8/Garrison | Discovered new exit (range 10) 6516 | -8/Garrison | Expanded RIF knowledge: Robot Detection 6762 | -8/Garrison | Triggered checkpoint 6778 | -8/Garrison | Garrison Relay disabled 7088 | -8/Garrison | Build established: Bothacker-Mutant 7102 | -8/Garrison | Discovered new exit (range 5) 7153 | -8/Garrison | Triggered checkpoint 7273 | -8/Garrison | Garrison Relay disabled 7447 | -8/Garrison | Triggered checkpoint 7500 | -8/Garrison | Lost 4 parts (1p1n2w) 7550 | -8/Garrison | Discovered new exit (range 12) 7701 | -8/Garrison | Triggered checkpoint 7711 | -8/Garrison | Core integrity fell below 50% 7765 | -8/Garrison | Garrison Relay disabled 7851 | -8/Garrison | Entered Materials 8199 | -8/Materials | Identified exit to Garrison 8199 | -8/Materials | Entered Garrison 8199 | -8/Garrison | Accompanied by 2 allies 8239 | -8/Garrison | Triggered checkpoint 8242 | -8/Garrison | Expanded RIF knowledge: Autooverride 8303 | -8/Garrison | Garrison Relay disabled 8549 | -8/Garrison | Build established: Botlord-Mutant 8585 | -8/Garrison | Triggered checkpoint 8591 | -8/Garrison | Triggered checkpoint 8629 | -8/Garrison | Lost 3 allies 8642 | -8/Garrison | Discovered new exit (range 10) 8695 | -8/Garrison | Garrison Relay disabled 8717 | -8/Garrison | Triggered checkpoint 8760 | -8/Garrison | Garrison Relay disabled 8841 | -8/Garrison | Triggered checkpoint 8889 | -8/Garrison | Triggered checkpoint 8910 | -8/Garrison | Discovered new exit (range 10) 9044 | -8/Garrison | Entered Factory 9044 | -7/Factory | Accompanied by 3 allies 9044 | -7/Factory | Evolved 2 slots: Utility x2 9372 | -7/Factory | P-60 Hacker assimilated allied Trooper 3c 10107 | -7/Factory | Build established: Mutant 10207 | -7/Factory | Discovered new exit (range 11) 10772 | -7/Factory | Identified exit to Garrison 10772 | -7/Factory | Entered Garrison 10772 | -7/Garrison | Warlord forces raided the area 10772 | -7/Garrison | Accompanied by 1 ally 10810 | -7/Garrison | Triggered checkpoint 10832 | -7/Garrison | Garrison Relay disabled 10834 | -7/Garrison | Triggered checkpoint 10834 | -7/Garrison | Build established: Botlord-Mutant 10876 | -7/Garrison | Triggered checkpoint 10944 | -7/Garrison | Triggered checkpoint 10944 | -7/Garrison | Triggered checkpoint 11015 | -7/Garrison | Discovered new exit (range 10) 11065 | -7/Garrison | Expanded RIF knowledge: Command Fork 11118 | -7/Garrison | Triggered checkpoint 11175 | -7/Garrison | Warlord forces retreated 11190 | -7/Garrison | Triggered checkpoint 11208 | -7/Garrison | Garrison Relay disabled 11355 | -7/Garrison | Discovered new exit (range 14) 11432 | -7/Garrison | Garrison Relay disabled 11504 | -7/Garrison | Triggered checkpoint 11514 | -7/Garrison | Triggered checkpoint 11544 | -7/Garrison | Triggered checkpoint 11664 | -7/Garrison | Discovered new exit (range 10) 11746 | -7/Garrison | Triggered checkpoint 11826 | -7/Garrison | Garrison Relay disabled 11994 | -7/Garrison | Entered Factory 11994 | -6/Factory | Accompanied by 3 allies 11994 | -6/Factory | Evolved 2 slots: Utility x2 12074 | -6/Factory | Identified exit to Garrison 12109 | -6/Factory | Entered Garrison 12109 | -6/Garrison | Accompanied by 1 ally 12126 | -6/Garrison | Garrison Relay disabled 12211 | -6/Garrison | Triggered checkpoint 12213 | -6/Garrison | Triggered checkpoint 12260 | -6/Garrison | Lost 3 allies 12271 | -6/Garrison | Lost 6 parts (1p2n2u1w) 12417 | -6/Garrison | Triggered checkpoint 12470 | -6/Garrison | Core integrity fell below 50% 12483 | -6/Garrison | Triggered checkpoint 12538 | -6/Garrison | Discovered new exit (range 12) 12571 | -6/Garrison | Triggered checkpoint 12584 | -6/Garrison | Garrison Relay disabled 12815 | -6/Garrison | Triggered checkpoint 12843 | -6/Garrison | Garrison Relay disabled 12909 | -6/Garrison | System corruption reached 10% 12929 | -6/Garrison | Found Relay Coupler [Proto] 12931 | -6/Garrison | Found Relay Coupler [Proto] 12934 | -6/Garrison | Found Relay Coupler [Proto] 12937 | -6/Garrison | Found Relay Coupler [Proto] 12939 | -6/Garrison | Lost 6 parts (1n4u1w) 12966 | -6/Garrison | Discovered new exit (range 10) 13225 | -6/Garrison | Triggered checkpoint 13247 | -6/Garrison | Garrison Relay disabled 13333 | -6/Garrison | Triggered checkpoint 13357 | -6/Garrison | Discovered new exit (range 13) 13601 | -6/Garrison | Build established: Mutant 13840 | -6/Garrison | Triggered checkpoint 13870 | -6/Garrison | Garrison Relay disabled 14045 | -6/Garrison | Rescued a captive Derelict 14053 | -6/Garrison | Rescued a captive Derelict 14109 | -6/Garrison | Expanded RIF knowledge: Code Merge 14166 | -6/Garrison | Lost 3 allies 14169 | -6/Garrison | Core integrity fell below 20% 14172 | -6/Garrison | Entered Factory 14172 | -5/Factory | Evolved 2 slots: Propulsion x2 14197 | -5/Factory | Lost 4 parts (2n1u1w) 14347 | -5/Factory | Build established: Scavenger-Mutant 14890 | -5/Factory | Lost 6 parts (1p2n3u) 15226 | -5/Factory | System corruption reached 10% 15234 | -5/Factory | Core integrity fell below 50% 15250 | -5/Factory | Lost 8 parts (4n2u2w) 15315 | -5/Factory | Self-destructed Last Messages --------------- 15246_ Kicked P-70 Sage out of the way. 15249_ P-70 Sage resets R-10 Processor, system corruption cleaned. 15252_ Kicked P-70 Sage. 15254_ Kicked P-70 Sage out of the way. 15257_ Kicked P-70 Sage. 15259_ Kicked P-70 Sage out of the way. 15264_ Kicked P-70 Sage. 15265_ Mic. Fission Core destroyed. 15266_ Kicked P-70 Sage out of the way. 15267_ Thunder Leg destroyed. 15268_ Kicked P-70 Sage. 15277_ VDMO%CTSOE%QUZQEGDXNOI:H0LVP 15283_ Thunder Leg destroyed. 15284_ Slammed into P-70 Sage. 15293_ Huge Storage Unit destroyed. 15299_ Door malfunctions. 15314_ K-01 Serf cleans the Terminal. 15315_ System corrupted: Matter fused (-7). Map ----- +----------------------------------------------------+ | ?????????????????????????????????????????????????? | | ?????????????????????????????????????????????????? | | ?????????????????????????????????????????????????? | | ?????????????????????????????????????????????????? | | ?????????????????????????????????????????????????? | | ?????????????????????????????????????????????????? | | ?????????????????????????????????????????????????? | | ?????????????????????????????????????????????????? | | ?????????????????????????????????????????????????? | | ?????????????????????????????????????????????????? | | ?????????????????????????????????????????????????? | | ??????????????????????????? ??????????????????? | | ??????????????????????????? #????????????????? | | ??????????????????????????# #????????????????? | | ??????????????????????????# #????????????????? | | ??????????????????????????# #????????????????? | | ??????????????????????????# #????????????????? | | ??????????????????????????# #????????????????? | | ?????????????????########## #????????????????? | | ?????????????????# # #????????????????? | | ?????????????????# # #????????????????? | | ?????????????????# # #???????########## | | ?????????????????# ! # #???????# | | ?????????????????# # #???????# | | ?????????????????# k # #???????# | | ?????????????????# @/ #???????# | | ?????????????????# # k #???????# | | ?????????????????# # #???????# #### | | ?????????????????########## ######### #?# | | ???????????????? #?# | | ??????????????? #?# | | ???????????????? #?# | | ???????????????? #?# | | ????????????????? #?# | | ???????????????? ##############T# #?# | | ???????????????????????????????### #?# | | ?????????????????????????????????# #?# | | ?????????????????????????????????# #?# | | ?????????????????????????????????# #?# | | ?????????????????????????????????# #?# | | ?????????????????????????????????# #?## | | ?????????????????????????????????##############??? | | ?????????????????????????????????????????????????? | | ?????????????????????????????????????????????????? | | ?????????????????????????????????????????????????? | | ?????????????????????????????????????????????????? | | ?????????????????????????????????????????????????? | | ?????????????????????????????????????????????????? | | ?????????????????????????????????????????????????? | | ?????????????????????????????????????????????????? | +----------------------------------------------------+ Best States ------------- Heat Dissipation 75 Energy Generation 25 Energy Capacity 290 Matter Stores 300 Matter Capacity 300 Sight Range 16 Robot Scan Range 20 Terrain Scan Density 10 ECM Strength 2 Armor Coverage 450 Resistance: TH 20 Core Shielding 30 Phase Shifting 10 Evasion (%) 50 Targeting Accuracy 12 Melee Accuracy 6 Recoil Reduction 3 Defensive Hacking 14 Relay Coupler Types 7 Relay Coupler Value 108 Item Schematics ----------------- None Robot Schematics ------------------ None Fabricated ------------ Nothing Repaired ---------- Nothing Studied --------- Wheel | -9/Materials | Hacked Com. Wheel | -9/Materials | Hacked Minigun | -8/Materials | Hacked Arm. Wheel | -8/Materials | Hacked Alien Tech Used ----------------- None Achievements -------------- Hackerman Challenges ------------ None Game ------ Seed TerrorShiftJoltstriker Manual? 0 Play Time 02:06:49 Cumulative 205.8 hours Start 2026.08.08 @ 18:55:43 End 2026.08.08 @ 21:10:50 Sessions 1 Manual Loads 0 Difficulty Rogue Special Mode None Game No. 216 Rogue 162 Adventurer 54 Explorer 0 Win Type - Total 9 Types 5/0/1/1/0/0/0/1/0/1 Lore% 71 Gallery% 60 Achievement% 57 Wizard Run 0 Options --------- Layout 1 ASCII 0 Keyboard 0 Movement Mouse Keybinds 1 Fullscreen 2 Font 32/Tamsyn Map View 50x35 Zoom Use 0% Tactical HUD 1 Map Filters NONE Filters NONE Steam 1 RUN: ab8c137a-e6d1-4f99-985c-de4ae31e64ed